[Event "Live Chess"]
[Site "Chess.com"]
[Date "2011.01.09"]
[Round "-"]
[White "jinu12"]
[Black "hipposcottimus"]
[Result "0-1"]
[CurrentPosition "8/8/Kqkb4/8/8/8/8/8 w - -"]
[Timezone "UTC"]
[ECO "C20"]
[ECOUrl "https://www.chess.com/openings/Kings-Pawn-Opening-Napoleon-Attack"]
[UTCDate "2011.01.09"]
[UTCTime "04:54:54"]
[WhiteElo "1104"]
[BlackElo "1431"]
[TimeControl "600"]
[Termination "hipposcottimus won by checkmate"]
[StartTime "04:54:54"]
[EndDate "2011.01.09"]
[EndTime "05:12:51"]
[Link "https://www.chess.com/game/live/85677357"]

1. e4 {[%clk 0:10:00]} 1... e5 {[%clk 0:10:00]} 2. Qf3 {[%clk 0:09:56.1]} 2... Nc6 {[%clk 0:09:57.2]} 3. Bc4 {[%clk 0:09:52.3]} 3... Nf6 {[%clk 0:09:49.1]} 4. Nc3 {[%clk 0:09:45.7]} 4... Nd4 {[%clk 0:09:44.3]} 5. Qg3 {[%clk 0:09:36]} 5... Nxc2+ {[%clk 0:09:39.6]} 6. Kd1 {[%clk 0:09:27.1]} 6... Nxa1 {[%clk 0:09:32.8]} 7. b3 {[%clk 0:09:19.4]} 7... d6 {[%clk 0:09:10.5]} 8. Bb2 {[%clk 0:09:17.2]} 8... Bg4+ {[%clk 0:09:04.9]} 9. f3 {[%clk 0:09:12.5]} 9... Nxb3 {[%clk 0:08:53.3]} 10. axb3 {[%clk 0:08:37.5]} 10... Bh5 {[%clk 0:08:51.4]} 11. Ba3 {[%clk 0:08:14]} 11... Qd7 {[%clk 0:08:13.2]} 12. Bb5 {[%clk 0:08:09.6]} 12... c6 {[%clk 0:08:10.2]} 13. Bc4 {[%clk 0:08:05.5]} 13... O-O-O {[%clk 0:08:07.6]} 14. Qg5 {[%clk 0:07:56.6]} 14... h6 {[%clk 0:07:59.2]} 15. Qf5 {[%clk 0:07:47.5]} 15... Kb8 {[%clk 0:07:50]} 16. g4 {[%clk 0:07:39.7]} 16... Bg6 {[%clk 0:07:46.4]} 17. Qxd7 {[%clk 0:07:28.1]} 17... Rxd7 {[%clk 0:07:45]} 18. Nh3 {[%clk 0:07:17.5]} 18... d5 {[%clk 0:07:40.4]} 19. exd5 {[%clk 0:07:10.3]} 19... Bxa3 {[%clk 0:07:36.8]} 20. dxc6 {[%clk 0:07:01.9]} 20... bxc6 {[%clk 0:07:32.9]} 21. Ke2 {[%clk 0:06:32.3]} 21... Rhd8 {[%clk 0:07:27.4]} 22. d3 {[%clk 0:06:22.4]} 22... Bxd3+ {[%clk 0:07:19.1]} 23. Bxd3 {[%clk 0:06:15.2]} 23... Rxd3 {[%clk 0:07:15.3]} 24. Nb1 {[%clk 0:06:09.5]} 24... Bb4 {[%clk 0:07:08.3]} 25. Nf2 {[%clk 0:06:07.2]} 25... Rxb3 {[%clk 0:07:01.1]} 26. Rd1 {[%clk 0:05:46.1]} 26... Rxd1 {[%clk 0:06:56.3]} 27. Nxd1 {[%clk 0:05:42.6]} 27... Rxb1 {[%clk 0:06:53]} 28. Ne3 {[%clk 0:05:37]} 28... Nd5 {[%clk 0:06:11.4]} 29. Nf5 {[%clk 0:05:18.4]} 29... g6 {[%clk 0:05:53.8]} 30. Nxh6 {[%clk 0:04:53.9]} 30... Rb2+ {[%clk 0:05:44.5]} 31. Kd3 {[%clk 0:04:49]} 31... Rxh2 {[%clk 0:05:39.2]} 32. Nxf7 {[%clk 0:04:44.7]} 32... Rh3 {[%clk 0:05:34.5]} 33. Nxe5 {[%clk 0:04:05.1]} 33... Bd6 {[%clk 0:05:30.3]} 34. Nxc6+ {[%clk 0:03:52.9]} 34... Kc7 {[%clk 0:05:27.4]} 35. Nxa7 {[%clk 0:03:45.2]} 35... Rxf3+ {[%clk 0:05:20.9]} 36. Ke4 {[%clk 0:03:40.8]} 36... Ra3 {[%clk 0:05:05.6]} 37. Nb5+ {[%clk 0:03:36.3]} 37... Kc6 {[%clk 0:05:04.1]} 38. Nxa3 {[%clk 0:03:30]} 38... Nf6+ {[%clk 0:05:03.8]} 39. Kf3 {[%clk 0:03:24.3]} 39... Kd5 {[%clk 0:05:01.9]} 40. Nc2 {[%clk 0:03:16.2]} 40... Ke5 {[%clk 0:04:54.3]} 41. Ne3 {[%clk 0:03:11.9]} 41... Bb8 {[%clk 0:04:37.9]} 42. Nc4+ {[%clk 0:03:07.2]} 42... Ke6 {[%clk 0:04:34]} 43. Nb6 {[%clk 0:02:47.1]} 43... g5 {[%clk 0:04:28.8]} 44. Na4 {[%clk 0:02:34.5]} 44... Bf4 {[%clk 0:04:18.9]} 45. Nc3 {[%clk 0:02:26.4]} 45... Nd7 {[%clk 0:04:14.3]} 46. Ne4 {[%clk 0:02:11.4]} 46... Ne5+ {[%clk 0:04:11.9]} 47. Ke2 {[%clk 0:01:56.2]} 47... Nxg4 {[%clk 0:04:06.4]} 48. Nc5+ {[%clk 0:01:51.9]} 48... Kd5 {[%clk 0:03:50.7]} 49. Nd3 {[%clk 0:01:46.2]} 49... Bd6 {[%clk 0:03:44.5]} 50. Nf2 {[%clk 0:01:30]} 50... Nxf2 {[%clk 0:03:38.5]} 51. Kxf2 {[%clk 0:01:27.4]} 51... Ke5 {[%clk 0:03:38.2]} 52. Kf3 {[%clk 0:01:23.2]} 52... Kf5 {[%clk 0:03:36]} 53. Kg2 {[%clk 0:01:19.6]} 53... g4 {[%clk 0:03:35.1]} 54. Kf1 {[%clk 0:01:14.6]} 54... Kf4 {[%clk 0:03:34]} 55. Kf2 {[%clk 0:01:12]} 55... g3+ {[%clk 0:03:27.2]} 56. Kg2 {[%clk 0:01:10.2]} 56... Kg4 {[%clk 0:03:24.9]} 57. Kf1 {[%clk 0:00:59.4]} 57... Kf3 {[%clk 0:03:12]} 58. Ke1 {[%clk 0:00:55.5]} 58... g2 {[%clk 0:03:08.3]} 59. Kd2 {[%clk 0:00:50.6]} 59... g1=Q {[%clk 0:03:05.7]} 60. Kd3 {[%clk 0:00:46.7]} 60... Qe3+ {[%clk 0:03:04.5]} 61. Kc4 {[%clk 0:00:43.9]} 61... Ke4 {[%clk 0:03:01.1]} 62. Kb5 {[%clk 0:00:38.9]} 62... Kd5 {[%clk 0:02:57.6]} 63. Ka6 {[%clk 0:00:26.5]} 63... Kc6 {[%clk 0:02:36.9]} 64. Ka5 {[%clk 0:00:22]} 64... Qb3 {[%clk 0:02:20.8]} 65. Ka6 {[%clk 0:00:18.5]} 65... Qb6# {[%clk 0:02:17.7]} 0-1

[Event "Live Chess"]
[Site "Chess.com"]
[Date "2011.01.06"]
[Round "-"]
[White "hipposcottimus"]
[Black "13tone"]
[Result "0-1"]
[CurrentPosition "1k6/1pp4p/1P1b1p2/p2P4/Pr6/2QR4/4rqPP/2R3K1 w - -"]
[Timezone "UTC"]
[ECO "A06"]
[ECOUrl "https://www.chess.com/openings/Reti-Opening-Tennison-Gambit"]
[UTCDate "2011.01.06"]
[UTCTime "01:15:06"]
[WhiteElo "1428"]
[BlackElo "1606"]
[TimeControl "120+12"]
[Termination "13tone won by resignation"]
[StartTime "01:15:06"]
[EndDate "2011.01.06"]
[EndTime "01:29:17"]
[Link "https://www.chess.com/game/live/84641446"]

1. e4 {[%clk 0:02:00]} 1... d5 {[%clk 0:02:00]} 2. Nf3 {[%clk 0:02:11.6]} 2... d4 {[%clk 0:01:53.4]} 3. d3 {[%clk 0:02:22]} 3... Bg4 {[%clk 0:02:02.4]} 4. c3 {[%clk 0:02:28.6]} 4... e5 {[%clk 0:02:06.2]} 5. Qa4+ {[%clk 0:02:32.4]} 5... Nc6 {[%clk 0:02:02.5]} 6. cxd4 {[%clk 0:02:30.3]} 6... exd4 {[%clk 0:02:01]} 7. Ne5 {[%clk 0:02:34.2]} 7... Bd7 {[%clk 0:01:50.8]} 8. Nxd7 {[%clk 0:02:36]} 8... Qxd7 {[%clk 0:01:55.6]} 9. Be2 {[%clk 0:02:47.6]} 9... O-O-O {[%clk 0:01:32.2]} 10. O-O {[%clk 0:02:46.6]} 10... Kb8 {[%clk 0:01:32.9]} 11. Na3 {[%clk 0:02:40.7]} 11... Ne5 {[%clk 0:01:27.9]} 12. Nb5 {[%clk 0:02:48.9]} 12... a6 {[%clk 0:01:27.3]} 13. Nc3 {[%clk 0:00:54]} 13... dxc3 {[%clk 0:01:33.1]} 14. Qb3 {[%clk 0:01:00.7]} 14... c2 {[%clk 0:00:52.2]} 15. Qxc2 {[%clk 0:01:06.1]} 15... f5 {[%clk 0:00:47]} 16. Rd1 {[%clk 0:01:10.2]} 16... Nf6 {[%clk 0:00:32.4]} 17. d4 {[%clk 0:01:15.6]} 17... Nc6 {[%clk 0:00:27.9]} 18. d5 {[%clk 0:00:31.2]} 18... Nb4 {[%clk 0:00:30.1]} 19. Qc4 {[%clk 0:00:39.4]} 19... fxe4 {[%clk 0:00:31.2]} 20. Bg5 {[%clk 0:00:38.5]} 20... Nd3 {[%clk 0:00:23.2]} 21. Bxf6 {[%clk 0:00:45]} 21... gxf6 {[%clk 0:00:24.9]} 22. Bxd3 {[%clk 0:00:56.2]} 22... exd3 {[%clk 0:00:33.2]} 23. Rxd3 {[%clk 0:01:06.7]} 23... Bd6 {[%clk 0:00:36.1]} 24. a4 {[%clk 0:01:17.7]} 24... Qf5 {[%clk 0:00:25]} 25. b4 {[%clk 0:01:24.6]} 25... Rhe8 {[%clk 0:00:29.3]} 26. b5 {[%clk 0:01:34]} 26... Re4 {[%clk 0:00:38.6]} 27. Qb3 {[%clk 0:01:36.7]} 27... Rb4 {[%clk 0:00:40.4]} 28. Qc2 {[%clk 0:01:38]} 28... a5 {[%clk 0:00:46]} 29. Rc1 {[%clk 0:01:36.7]} 29... Re8 {[%clk 0:00:36.2]} 30. Qc3 {[%clk 0:01:42.3]} 30... Re2 {[%clk 0:00:37.6]} 31. b6 {[%clk 0:01:47.8]} 31... Qxf2+ {[%clk 0:00:41]} 0-1

[Event "Live Chess"]
[Site "Chess.com"]
[Date "2011.01.06"]
[Round "-"]
[White "ZARR"]
[Black "hipposcottimus"]
[Result "0-1"]
[CurrentPosition "6k1/p6p/2p1P1pK/7r/4PB1P/6P1/8/8 w - -"]
[Timezone "UTC"]
[ECO "C55"]
[ECOUrl "https://www.chess.com/openings/Italian-Game-Two-Knights-Modern-Bishops-Opening-4...d5-5.exd5-Nxd5"]
[UTCDate "2011.01.06"]
[UTCTime "00:07:05"]
[WhiteElo "1468"]
[BlackElo "1432"]
[TimeControl "600"]
[Termination "hipposcottimus won by checkmate"]
[StartTime "00:07:05"]
[EndDate "2011.01.06"]
[EndTime "00:15:36"]
[Link "https://www.chess.com/game/live/84626022"]

1. e4 {[%clk 0:10:00]} 1... e5 {[%clk 0:10:00]} 2. Nf3 {[%clk 0:09:57.5]} 2... Nc6 {[%clk 0:09:57.9]} 3. Bc4 {[%clk 0:09:55.1]} 3... Nf6 {[%clk 0:09:56.9]} 4. d3 {[%clk 0:09:54]} 4... d5 {[%clk 0:09:54.3]} 5. exd5 {[%clk 0:09:51.9]} 5... Nxd5 {[%clk 0:09:54]} 6. Ng5 {[%clk 0:09:45.3]} 6... Be7 {[%clk 0:09:46.6]} 7. Nxf7 {[%clk 0:09:43]} 7... Kxf7 {[%clk 0:09:41]} 8. Qf3+ {[%clk 0:09:41.8]} 8... Bf6 {[%clk 0:09:34]} 9. Bxd5+ {[%clk 0:09:38.5]} 9... Be6 {[%clk 0:09:30.8]} 10. Bxc6 {[%clk 0:09:36.1]} 10... bxc6 {[%clk 0:09:28]} 11. Qxc6 {[%clk 0:09:34]} 11... Re8 {[%clk 0:09:22.4]} 12. O-O {[%clk 0:09:31.5]} 12... Kg8 {[%clk 0:09:21.5]} 13. Nc3 {[%clk 0:09:23.2]} 13... Bd7 {[%clk 0:09:11.6]} 14. Qf3 {[%clk 0:09:09.4]} 14... c6 {[%clk 0:09:02.8]} 15. Ne4 {[%clk 0:09:06.4]} 15... Bh4 {[%clk 0:08:56.5]} 16. g3 {[%clk 0:08:51]} 16... Rf8 {[%clk 0:08:53.9]} 17. Qh5 {[%clk 0:08:43.4]} 17... Be7 {[%clk 0:08:35.5]} 18. f4 {[%clk 0:08:38.5]} 18... Bf5 {[%clk 0:08:28.8]} 19. fxe5 {[%clk 0:08:31.7]} 19... Bxe4 {[%clk 0:08:27.5]} 20. Rxf8+ {[%clk 0:08:28.3]} 20... Qxf8 {[%clk 0:08:27.1]} 21. dxe4 {[%clk 0:08:26.2]} 21... Bc5+ {[%clk 0:08:18.4]} 22. Kg2 {[%clk 0:08:15.5]} 22... Qf2+ {[%clk 0:08:13.3]} 23. Kh3 {[%clk 0:08:14.2]} 23... Qf1+ {[%clk 0:08:07.4]} 24. Kh4 {[%clk 0:08:11.9]} 24... Be7+ {[%clk 0:08:02.4]} 25. Kg4 {[%clk 0:08:09.9]} 25... Rf8 {[%clk 0:07:54.8]} 26. Bg5 {[%clk 0:07:52.3]} 26... Qxa1 {[%clk 0:06:34.5]} 27. Bxe7 {[%clk 0:07:49.6]} 27... Qd1+ {[%clk 0:06:32.9]} 28. Kh4 {[%clk 0:07:46.5]} 28... Qxh5+ {[%clk 0:05:52.2]} 29. Kxh5 {[%clk 0:07:43.2]} 29... Rf2 {[%clk 0:05:51]} 30. h4 {[%clk 0:07:36]} 30... Kf7 {[%clk 0:05:47.7]} 31. Bg5 {[%clk 0:07:25.7]} 31... Rxc2 {[%clk 0:05:40.8]} 32. Bf4 {[%clk 0:07:21.3]} 32... Rxb2 {[%clk 0:05:35.5]} 33. Kg5 {[%clk 0:07:20.3]} 33... Rxa2 {[%clk 0:05:29]} 34. Kf5 {[%clk 0:07:19.2]} 34... g6+ {[%clk 0:05:19.2]} 35. Kg5 {[%clk 0:07:15.3]} 35... Ra5 {[%clk 0:04:49.4]} 36. Kh6 {[%clk 0:07:12.5]} 36... Kg8 {[%clk 0:04:41.6]} 37. e6 {[%clk 0:07:08.6]} 37... Rh5# {[%clk 0:04:39]} 0-1

[Event "Live Chess"]
[Site "Chess.com"]
[Date "2011.01.05"]
[Round "-"]
[White "hipposcottimus"]
[Black "trinasty"]
[Result "1-0"]
[CurrentPosition "2R5/k1K5/1r6/4p3/p7/8/8/Q7 b - -"]
[Timezone "UTC"]
[ECO "C00"]
[ECOUrl "https://www.chess.com/openings/French-Defense-Steiner-Variation"]
[UTCDate "2011.01.05"]
[UTCTime "20:45:37"]
[WhiteElo "1423"]
[BlackElo "1342"]
[TimeControl "360+4"]
[Termination "hipposcottimus won on time"]
[StartTime "20:45:37"]
[EndDate "2011.01.05"]
[EndTime "21:08:04"]
[Link "https://www.chess.com/game/live/84573913"]

1. e4 {[%clk 0:06:00]} 1... e6 {[%clk 0:06:00]} 2. c4 {[%clk 0:06:01.6]} 2... c6 {[%clk 0:06:02.8]} 3. d4 {[%clk 0:06:04.2]} 3... Nf6 {[%clk 0:06:01.2]} 4. e5 {[%clk 0:06:06.7]} 4... Ng8 {[%clk 0:06:02]} 5. Nc3 {[%clk 0:06:08.4]} 5... Qa5 {[%clk 0:06:01.1]} 6. Bd2 {[%clk 0:06:09.6]} 6... Qd8 {[%clk 0:06:01.7]} 7. Nf3 {[%clk 0:06:10]} 7... Na6 {[%clk 0:05:58.6]} 8. c5 {[%clk 0:06:11.4]} 8... b5 {[%clk 0:05:53.4]} 9. Nxb5 {[%clk 0:05:54.7]} 9... cxb5 {[%clk 0:05:54.6]} 10. Bxb5 {[%clk 0:05:56.5]} 10... Ne7 {[%clk 0:05:52.8]} 11. O-O {[%clk 0:05:24.6]} 11... Nf5 {[%clk 0:05:54.8]} 12. Bg5 {[%clk 0:05:19.2]} 12... Qa5 {[%clk 0:05:55.6]} 13. a4 {[%clk 0:05:03.7]} 13... Bb7 {[%clk 0:05:52]} 14. Qd3 {[%clk 0:04:43.4]} 14... h6 {[%clk 0:05:47.7]} 15. Bf4 {[%clk 0:04:36]} 15... g5 {[%clk 0:05:47]} 16. Bg3 {[%clk 0:04:32.3]} 16... Nb4 {[%clk 0:05:47.1]} 17. Qc3 {[%clk 0:03:56.6]} 17... g4 {[%clk 0:05:29.7]} 18. Ne1 {[%clk 0:03:48.7]} 18... a6 {[%clk 0:05:31.2]} 19. Be2 {[%clk 0:03:42.1]} 19... Nc6 {[%clk 0:05:08.6]} 20. Qxa5 {[%clk 0:03:29.2]} 20... Nxa5 {[%clk 0:05:11.3]} 21. Bxg4 {[%clk 0:03:29.5]} 21... Nxd4 {[%clk 0:05:06.5]} 22. b4 {[%clk 0:03:27.3]} 22... Nab3 {[%clk 0:05:06.1]} 23. Rd1 {[%clk 0:03:15.7]} 23... a5 {[%clk 0:05:03.1]} 24. b5 {[%clk 0:03:14.2]} 24... Rg8 {[%clk 0:04:57.7]} 25. Bh5 {[%clk 0:03:12.6]} 25... Rg5 {[%clk 0:04:50.5]} 26. Bf3 {[%clk 0:03:06.7]} 26... Nxf3+ {[%clk 0:04:51.6]} 27. Nxf3 {[%clk 0:03:10]} 27... Bxf3 {[%clk 0:04:52.5]} 28. gxf3 {[%clk 0:03:13.7]} 28... h5 {[%clk 0:04:53.1]} 29. Kh1 {[%clk 0:03:16.8]} 29... Bxc5 {[%clk 0:04:54.6]} 30. f4 {[%clk 0:03:19.1]} 30... Rg8 {[%clk 0:04:55.2]} 31. Bh4 {[%clk 0:03:20]} 31... Rg4 {[%clk 0:04:51.2]} 32. Bg3 {[%clk 0:03:21.3]} 32... h4 {[%clk 0:04:53.4]} 33. f3 {[%clk 0:03:17.1]} 33... Rg8 {[%clk 0:04:44.9]} 34. Bxh4 {[%clk 0:03:18.2]} 34... Nd4 {[%clk 0:04:42.9]} 35. Bf6 {[%clk 0:03:21.7]} 35... Nxf3 {[%clk 0:04:43.9]} 36. Rxf3 {[%clk 0:03:24.8]} 36... Bb4 {[%clk 0:04:09.3]} 37. h4 {[%clk 0:03:22.8]} 37... Rg4 {[%clk 0:04:01.7]} 38. h5 {[%clk 0:03:21.2]} 38... Bf8 {[%clk 0:04:02.3]} 39. Rdf1 {[%clk 0:03:09]} 39... Bg7 {[%clk 0:03:58.1]} 40. Bg5 {[%clk 0:03:03.5]} 40... Rc8 {[%clk 0:03:49.4]} 41. h6 {[%clk 0:03:06]} 41... Bh8 {[%clk 0:03:39.5]} 42. Kh2 {[%clk 0:03:06.2]} 42... Rc4 {[%clk 0:03:29.4]} 43. Kh3 {[%clk 0:03:08]} 43... Rxg5 {[%clk 0:03:28.5]} 44. fxg5 {[%clk 0:03:09]} 44... Rxa4 {[%clk 0:03:26.7]} 45. Rf4 {[%clk 0:02:52.8]} 45... Ra3+ {[%clk 0:03:26.5]} 46. R4f3 {[%clk 0:02:51]} 46... Ra4 {[%clk 0:03:24.8]} 47. Rf4 {[%clk 0:02:43.9]} 47... Ra3+ {[%clk 0:03:26.9]} 48. Kh4 {[%clk 0:02:46.1]} 48... Bxe5 {[%clk 0:03:26.9]} 49. h7 {[%clk 0:02:39.8]} 49... Bh8 {[%clk 0:03:15.8]} 50. Kh5 {[%clk 0:02:40.7]} 50... Rh3+ {[%clk 0:03:15.8]} 51. Rh4 {[%clk 0:02:38.4]} 51... Rg3 {[%clk 0:03:07.1]} 52. Ra1 {[%clk 0:02:34.3]} 52... Bxa1 {[%clk 0:02:50.3]} 53. b6 {[%clk 0:02:25]} 53... Rb3 {[%clk 0:02:45.8]} 54. g6 {[%clk 0:02:23]} 54... fxg6+ {[%clk 0:02:28.2]} 55. Kxg6 {[%clk 0:02:23.7]} 55... Rg3+ {[%clk 0:02:18.4]} 56. Kh6 {[%clk 0:02:16.8]} 56... Bg7+ {[%clk 0:02:00.1]} 57. Kh5 {[%clk 0:02:15.7]} 57... Bh8 {[%clk 0:01:58.9]} 58. b7 {[%clk 0:02:04]} 58... Rb3 {[%clk 0:02:01.3]} 59. Rg4 {[%clk 0:02:04.5]} 59... Ke7 {[%clk 0:01:48]} 60. Rg8 {[%clk 0:02:03]} 60... Rb5+ {[%clk 0:01:39.7]} 61. Kg6 {[%clk 0:02:01.7]} 61... Be5 {[%clk 0:01:20.3]} 62. b8=Q {[%clk 0:01:38.8]} 62... Bxb8 {[%clk 0:01:22.2]} 63. h8=Q {[%clk 0:01:39.8]} 63... Be5 {[%clk 0:01:11.7]} 64. Re8+ {[%clk 0:01:32.8]} 64... Kd6 {[%clk 0:01:14.7]} 65. Qf8+ {[%clk 0:01:35.5]} 65... Kd5 {[%clk 0:01:16.3]} 66. Rd8 {[%clk 0:01:23.1]} 66... Kc6 {[%clk 0:01:08]} 67. Rc8+ {[%clk 0:01:20]} 67... Bc7 {[%clk 0:01:07.5]} 68. Qd8 {[%clk 0:00:56.1]} 68... Rb7 {[%clk 0:00:57.8]} 69. Qh4 {[%clk 0:00:53.9]} 69... e5 {[%clk 0:00:38.9]} 70. Qf6+ {[%clk 0:00:53.9]} 70... d6 {[%clk 0:00:39.9]} 71. Qf3+ {[%clk 0:00:47.3]} 71... d5 {[%clk 0:00:39.8]} 72. Qf6+ {[%clk 0:00:49.3]} 72... Kb5 {[%clk 0:00:30.1]} 73. Qf1+ {[%clk 0:00:46.7]} 73... Kb6 {[%clk 0:00:26]} 74. Kf6 {[%clk 0:00:42.1]} 74... Bd6 {[%clk 0:00:18.6]} 75. Ke6 {[%clk 0:00:37.1]} 75... Bc7 {[%clk 0:00:13.3]} 76. Kxd5 {[%clk 0:00:39.7]} 76... a4 {[%clk 0:00:08.7]} 77. Qb1+ {[%clk 0:00:37.1]} 77... Ka7 {[%clk 0:00:10.6]} 78. Qa1 {[%clk 0:00:38.7]} 78... Rb5+ {[%clk 0:00:09.8]} 79. Kc6 {[%clk 0:00:41.6]} 79... Rb6+ {[%clk 0:00:04.7]} 80. Kxc7 {[%clk 0:00:44.4]} 1-0

[Event "Live Chess"]
[Site "Chess.com"]
[Date "2011.01.05"]
[Round "-"]
[White "hipposcottimus"]
[Black "georgitanev"]
[Result "0-1"]
[CurrentPosition "r6k/pp3pp1/7p/1P3b2/2P1p3/1P1pqPQ1/3R2PP/6K1 w - -"]
[Timezone "UTC"]
[ECO "C00"]
[ECOUrl "https://www.chess.com/openings/French-Defense-Steiner-Variation"]
[UTCDate "2011.01.05"]
[UTCTime "20:27:18"]
[WhiteElo "1417"]
[BlackElo "1560"]
[TimeControl "300+7"]
[Termination "georgitanev won by resignation"]
[StartTime "20:27:18"]
[EndDate "2011.01.05"]
[EndTime "20:38:26"]
[Link "https://www.chess.com/game/live/84569085"]

1. e4 {[%clk 0:05:00]} 1... e6 {[%clk 0:05:00]} 2. c4 {[%clk 0:05:04.7]} 2... c6 {[%clk 0:05:05.5]} 3. d4 {[%clk 0:05:09.7]} 3... d5 {[%clk 0:05:09.8]} 4. Nc3 {[%clk 0:05:15.9]} 4... dxe4 {[%clk 0:05:06]} 5. Nxe4 {[%clk 0:05:22.3]} 5... Nf6 {[%clk 0:05:11.5]} 6. Bg5 {[%clk 0:05:25.5]} 6... Be7 {[%clk 0:05:17.1]} 7. Ng3 {[%clk 0:05:26.1]} 7... O-O {[%clk 0:05:21]} 8. Nf3 {[%clk 0:05:30.9]} 8... h6 {[%clk 0:05:26.4]} 9. Bxf6 {[%clk 0:05:25.8]} 9... Bxf6 {[%clk 0:05:31.5]} 10. Be2 {[%clk 0:05:29.9]} 10... Qc7 {[%clk 0:05:15.2]} 11. Qd3 {[%clk 0:05:23.4]} 11... c5 {[%clk 0:05:17.9]} 12. Ne4 {[%clk 0:05:25.4]} 12... Bxd4 {[%clk 0:05:13.3]} 13. Nxd4 {[%clk 0:05:28.1]} 13... cxd4 {[%clk 0:05:18.9]} 14. O-O {[%clk 0:05:32.8]} 14... Nc6 {[%clk 0:05:22.3]} 15. Rad1 {[%clk 0:05:36.8]} 15... e5 {[%clk 0:05:26.5]} 16. Qg3 {[%clk 0:05:36.7]} 16... Bf5 {[%clk 0:05:26.9]} 17. Nf6+ {[%clk 0:05:33.6]} 17... Kh8 {[%clk 0:05:21.1]} 18. Nd5 {[%clk 0:05:30.6]} 18... Qd7 {[%clk 0:05:10]} 19. b4 {[%clk 0:05:22.3]} 19... Qe6 {[%clk 0:05:07.6]} 20. b5 {[%clk 0:05:23.6]} 20... Ne7 {[%clk 0:05:12.6]} 21. Nc7 {[%clk 0:05:24.4]} 21... Qf6 {[%clk 0:04:56.8]} 22. Nxa8 {[%clk 0:05:20.1]} 22... Rxa8 {[%clk 0:05:01.6]} 23. Rd2 {[%clk 0:05:05.3]} 23... Ng6 {[%clk 0:04:38]} 24. Bf3 {[%clk 0:03:58.9]} 24... e4 {[%clk 0:04:35]} 25. Be2 {[%clk 0:03:46.5]} 25... d3 {[%clk 0:04:28.2]} 26. Bd1 {[%clk 0:03:44.4]} 26... Ne5 {[%clk 0:03:54.8]} 27. Bb3 {[%clk 0:03:27.7]} 27... Nd7 {[%clk 0:03:48.9]} 28. Re1 {[%clk 0:03:21.6]} 28... Nc5 {[%clk 0:03:51.2]} 29. f3 {[%clk 0:03:15.9]} 29... Qb6 {[%clk 0:03:29.8]} 30. Re3 {[%clk 0:02:41.7]} 30... Nxb3 {[%clk 0:03:30.8]} 31. axb3 {[%clk 0:02:46.3]} 31... Qxe3+ {[%clk 0:03:35.4]} 0-1

[Event "Live Chess"]
[Site "Chess.com"]
[Date "2011.01.05"]
[Round "-"]
[White "beckersdavid"]
[Black "hipposcottimus"]
[Result "1-0"]
[CurrentPosition "8/p5pk/4Qn1p/7r/3Pp2q/4P2P/P4PP1/R1R3K1 b - -"]
[Timezone "UTC"]
[ECO "D10"]
[ECOUrl "https://www.chess.com/openings/Slav-Defense-3.Nc3"]
[UTCDate "2011.01.05"]
[UTCTime "20:03:40"]
[WhiteElo "1426"]
[BlackElo "1422"]
[TimeControl "600"]
[Termination "beckersdavid won on time"]
[StartTime "20:03:40"]
[EndDate "2011.01.05"]
[EndTime "20:22:15"]
[Link "https://www.chess.com/game/live/84562849"]

1. d4 {[%clk 0:10:00]} 1... d5 {[%clk 0:10:00]} 2. c4 {[%clk 0:09:58]} 2... c6 {[%clk 0:09:59.7]} 3. Nc3 {[%clk 0:09:55.1]} 3... Nd7 {[%clk 0:09:59.2]} 4. Nf3 {[%clk 0:09:53.8]} 4... e6 {[%clk 0:09:57.7]} 5. Bf4 {[%clk 0:09:52.1]} 5... f5 {[%clk 0:09:54.3]} 6. h3 {[%clk 0:09:50.2]} 6... Ngf6 {[%clk 0:09:52.3]} 7. cxd5 {[%clk 0:09:48.7]} 7... cxd5 {[%clk 0:09:51.2]} 8. e3 {[%clk 0:09:46.8]} 8... Bb4 {[%clk 0:09:49.4]} 9. Qa4 {[%clk 0:09:37.3]} 9... Bxc3+ {[%clk 0:09:33.7]} 10. bxc3 {[%clk 0:09:35.1]} 10... O-O {[%clk 0:09:33.3]} 11. Be2 {[%clk 0:09:22.5]} 11... Nb6 {[%clk 0:09:32.9]} 12. Qc2 {[%clk 0:09:19.8]} 12... Ne4 {[%clk 0:09:26.6]} 13. O-O {[%clk 0:09:14.4]} 13... Bd7 {[%clk 0:09:05.9]} 14. Nd2 {[%clk 0:09:08.5]} 14... Ba4 {[%clk 0:09:00.4]} 15. Qb2 {[%clk 0:09:00.2]} 15... Qh4 {[%clk 0:08:36.3]} 16. Nxe4 {[%clk 0:08:53.7]} 16... fxe4 {[%clk 0:08:34.4]} 17. Bg4 {[%clk 0:08:27.8]} 17... h6 {[%clk 0:07:57.4]} 18. Bxe6+ {[%clk 0:08:20]} 18... Kh8 {[%clk 0:07:55.5]} 19. Bg4 {[%clk 0:07:47.6]} 19... Nd7 {[%clk 0:07:13.9]} 20. Qb4 {[%clk 0:07:35.5]} 20... Bc6 {[%clk 0:07:05.2]} 21. Qd6 {[%clk 0:07:25.5]} 21... Nf6 {[%clk 0:06:55.8]} 22. Bg3 {[%clk 0:06:54.8]} 22... Qg5 {[%clk 0:06:09.4]} 23. Be2 {[%clk 0:06:36.3]} 23... Rad8 {[%clk 0:05:55.1]} 24. Qc5 {[%clk 0:06:27.8]} 24... Nd7 {[%clk 0:05:32.1]} 25. Qb4 {[%clk 0:05:42.8]} 25... Qg6 {[%clk 0:04:03.4]} 26. c4 {[%clk 0:05:29.1]} 26... Rf5 {[%clk 0:03:47]} 27. Bg4 {[%clk 0:05:05.7]} 27... Rg5 {[%clk 0:03:22.7]} 28. Bh4 {[%clk 0:04:47.4]} 28... Nf6 {[%clk 0:03:03.4]} 29. Bxg5 {[%clk 0:04:42.2]} 29... Qxg5 {[%clk 0:03:00.2]} 30. Be2 {[%clk 0:04:34.2]} 30... Bd7 {[%clk 0:02:40.8]} 31. Kh2 {[%clk 0:04:13.6]} 31... Qh4 {[%clk 0:02:20.3]} 32. Qxb7 {[%clk 0:03:45.7]} 32... Bg4 {[%clk 0:01:10.8]} 33. Bxg4 {[%clk 0:03:13.9]} 33... Nxg4+ {[%clk 0:01:09]} 34. Kg1 {[%clk 0:02:45.9]} 34... Nf6 {[%clk 0:00:37.1]} 35. cxd5 {[%clk 0:02:39.1]} 35... Rxd5 {[%clk 0:00:22.3]} 36. Qc8+ {[%clk 0:02:26]} 36... Kh7 {[%clk 0:00:18.5]} 37. Qe6 {[%clk 0:01:52.6]} 37... Rh5 {[%clk 0:00:06.8]} 38. Rfc1 {[%clk 0:01:37]} 1-0